lending/lending_fUSD_20260306
["ID","MTS","AMOUNT","RATE_DAILY","PERIOD"]
[407831982,1772815004134,-599.60298507,0.0005,120]
[407831983,1772815004144,-621.78829552,0.0005,120]
[407831984,1772815004154,-644.79446246,0.0005,120]
[407831985,1772815004163,-668.65185757,0.0005,120]
[407831986,1772815004173,-693.3919763,0.0005,120]
[407831987,1772815004183,-719.04747942,0.0005,120]
[407831988,1772815004192,-745.65223616,0.0005,120]
[407831989,1772815004203,-773.2413689,0.0005,120]
[407831990,1772815004213,-801.85129955,0.0005,120]
[407831991,1772815004224,-5000.0,0.0005,120]
[407831992,1772815004234,-831.51979763,0.0005,120]
[407831993,1772815004244,-862.28603014,0.0005,120]
[407831994,1772815004254,-894.19061326,0.0005,120]
[407831995,1772815004264,-927.27566595,0.0005,120]
[407831996,1772815004274,-961.58486559,0.0005,120]
[407831997,1772815004285,-997.16350561,0.0005,120]
[407831998,1772815004295,-267.33985821,0.0005,120]
[407831999,1772815004305,-803.0,0.0005,120]
[407832000,1772815004315,-379.66652132,0.0005001,120]
[407832001,1772815004325,-162.11,0.00050058,120]
[407832002,1772815004335,-10471.54839884,0.0005011,120]
[407832003,1772815004346,-1000.0,0.00050137,120]
[407832004,1772815004356,-485.83,0.00050141,120]
[407832005,1772815004366,-162.11,0.00050158,120]
[407832006,1772815004376,-1001.55,0.00050185,60]
[407832007,1772815004386,-1001.55,0.00050185,60]
[407832008,1772815004396,-3000.0,0.00050236,60]
[407832009,1772815004407,-1000.0,0.00050253,30]
[407832010,1772815004416,-162.11,0.00050258,120]
[407832011,1772815004427,-150.0,0.000503,91]
[407832012,1772815004436,-1825.8,0.00050306,120]
[407832013,1772815004446,-162.11,0.00050358,120]
[407832014,1772815004456,-1000.0,0.00050405,120]
[407832015,1772815004466,-917.06530854,0.00050405,120]
[407832016,1772815004476,-500.0,0.0005041,120]
[407832017,1772815004486,-1000.0,0.00050411,120]
[407832018,1772815004496,-485.83,0.00050415,120]
[407832019,1772815004506,-162.11,0.00050458,120]
[407832020,1772815004517,-1001.55,0.00050459,60]
[407832021,1772815004526,-1001.55,0.00050459,60]
[407832022,1772815004537,-205.35223095,0.0005049,120]
[407832023,1772815004547,-200000.0,0.000505,14]
[407832024,1772815004556,-5000000.0,0.000505,120]
[407832025,1772815004567,-151.12005063,0.00050509,118]
[407832026,1772815004576,-2600.0,0.0005051,60]
[407832027,1772815004586,-1999.0,0.00050527,30]
[407832028,1772815004596,-162.11,0.00050558,120]
[407832029,1772815004605,-5000.0,0.0005058,120]
[407832030,1772815004615,-216674.0,0.00050582,120]
[407832031,1772815004624,-350.0,0.00050591,14]
[407832032,1772815004634,-699.47607499,0.000506,120]
[407832033,1772815004644,-151.0,0.000506,120]
[407832034,1772815004654,-184966.42461897,0.00050627,2]
[407832035,1772815004663,-269903.82532275,0.00050627,5]
[407832036,1772815004673,-162.11,0.00050658,120]
[407832037,1772815004683,-1825.8,0.00050664,120]
[407832038,1772815004693,-1560.21,0.00050685,120]
[407832039,1772815004703,-1000.0,0.00050685,120]
[407832040,1772815004712,-485.83,0.00050689,120]
[407832041,1772815004722,-382.298,0.000507,120]
[407832042,1772815004731,-196605.00916088,0.000507,21]
[407832043,1772815004742,-1001.55,0.00050733,60]
[407832044,1772815004755,-1001.55,0.00050733,60]
[407832045,1772815004764,-162.11,0.00050758,120]
[407832046,1772815004774,-216674.0,0.00050782,120]
[407832047,1772815004783,-12000.0,0.00050785,120]
[407832048,1772815004795,-153.0,0.000508,120]
[407832049,1772815004806,-1000.0,0.00050801,30]
[407832050,1772815004815,-152.0,0.00050812,20]
[407832051,1772815004827,-500.0,0.00050821,120]
[407832052,1772815004836,-162.11,0.00050858,120]
[407832053,1772815004846,-500.0,0.000509,120]
[407832054,1772815004855,-660.96158625,0.000509,120]
[407832055,1772815004865,-1341.95478469,0.000509,120]
[407832056,1772815004876,-2147.83564889,0.00050904,120]
[407832057,1772815004887,-162.11,0.00050958,120]
[407832058,1772815004896,-1000.0,0.00050959,120]
[407832059,1772815004906,-153.25442737,0.00050962,30]
[407832060,1772815004915,-485.83,0.00050963,120]
[407832061,1772815004925,-216674.0,0.00050982,120]
[407832062,1772815004935,-1000.0,0.00050999,120]
[407832063,1772815004945,-384.44292207,0.00050999,120]
[407832064,1772815004955,-50000.0,0.00051,65]
[407832065,1772815004965,-1000.0,0.00051,120]
[407832066,1772815004975,-432.19735577,0.00051,120]
[407832067,1772815004985,-1014540.0,0.00051,120]
[407832068,1772815004996,-150.0,0.00051,120]
[407832069,1772815005006,-1450.71,0.00051,120]
[407832070,1772815005017,-4212.7320344,0.00051,120]
[407832071,1772815005027,-1000.0,0.00051,120]
[407832072,1772815005038,-311958.0,0.00051,120]
[407832073,1772815005047,-9902.0,0.00051,120]
[407832074,1772815005058,-58847.14525739,0.00051,120]
[407832075,1772815005068,-17574.0,0.00051,120]
[407832076,1772815005078,-150.0,0.00051,40]
[407832077,1772815005087,-20438.17723892,0.00051,120]
[407832078,1772815005097,-2300.97212921,0.00051,120]
[407832079,1772815005107,-786286.35,0.00051,65]
[407832080,1772815005117,-335160.0,0.00051,65]
[407832081,1772815005128,-335160.0,0.00051,65]
[407832082,1772815005138,-1000000.0,0.00051,65]
[407832083,1772815005148,-1000000.0,0.00051,40]
[407832084,1772815005158,-1000000.0,0.00051,65]
[407832085,1772815005168,-1000000.0,0.00051,41]
[407832086,1772815005178,-1000000.0,0.00051,42]
[407832087,1772815005188,-1000000.0,0.00051,43]
[407832088,1772815005198,-1000000.0,0.00051,44]
[407832089,1772815005208,-1000000.0,0.00051,45]
[407832090,1772815005218,-1000000.0,0.00051,46]
[407832091,1772815005228,-1000000.0,0.00051,47]
[407832092,1772815005239,-1000000.0,0.00051,48]
[407832093,1772815005251,-1000000.0,0.00051,74]
[407832094,1772815005261,-1000000.0,0.00051,74]
[407832095,1772815005271,-1000000.0,0.00051,78]
[407832096,1772815005282,-1000000.0,0.00051,90]
[407832097,1772815005292,-1000000.0,0.00051,90]
[407832098,1772815005302,-1000000.0,0.00051,90]
[407832099,1772815005312,-1000000.0,0.00051,90]
[407832100,1772815005323,-287729.6701089,0.00051,90]
[407832101,1772815016757,-292.917,0.00051,90]
[407832102,1772815016770,-11155.3412,0.00051,90]
[407832103,1772815016783,-7109.00005,0.00051,90]
[407832104,1772815016891,-10686.06636281,0.00051,90]
[407832105,1772815027947,1663.53,7.832e-05,2]
[407832106,1772815027991,1663.53,8.245e-05,2]
[407832107,1772815028049,1663.53,8.657e-05,2]
[407832108,1772815028120,1663.53,9.069e-05,2]
[407832109,1772815028156,1663.53,9.481e-05,2]
[407832110,1772815028241,1663.53,9.893e-05,2]
[407832111,1772815028277,1663.53,0.00010306,2]
[407832112,1772815031201,300.0,0.00010305,2]
[407832114,1772815298329,-1663.53,0.00010718,2]
[407832115,1772815298361,-238.0,0.00010718,2]
[407832116,1772815298392,-250.0,0.00010779,2]
[407832117,1772815298425,-166.96635769,0.00011113,2]
[407832118,1772815298458,-250.0,0.00011113,2]
[407832119,1772815298491,-1663.53,0.0001113,2]
[407832120,1772815298521,-300.0,0.00011336,2]
[407832121,1772815298692,-492.79013985,0.00011542,2]
[407832122,1772815301196,-1170.73986015,0.00011542,2]
[407832123,1772815301225,-1200.0,0.00011787,2]
[407832124,1772815301254,-300.0,0.00011788,2]
[407832125,1772815301284,-1200.0,0.00011789,2]
[407832128,1772815336438,500.0,8e-05,2]
[407832129,1772815336853,500.0,8e-05,2]
[407832130,1772815350258,-500.0,0.0001142,2]
[407832131,1772815350288,-500.0,0.0001142,2]
[407832132,1772815350317,-500.0,0.0001142,2]
[407832133,1772815350346,-500.0,0.0001142,2]
[407832134,1772815350375,-300.0,0.00011789,2]
[407832135,1772815350407,-500.0,0.0001179,2]
[407832136,1772815350436,-250.0,0.0001179,2]
[407832137,1772815350570,-3900.01,0.0001179,2]
[407832138,1772815350602,-1162.41814912,0.0001179,2]
[407832139,1772815350635,-451.30027669,0.0001179,2]
[407832140,1772815350664,-1663.53,0.00011955,2]
[407832141,1772815350693,-1663.53,0.00012367,2]
[407832142,1772815350747,-1010.179634,0.00012715,2]
[407832143,1772815350777,-1663.53,0.00012779,2]
[407832144,1772815350808,-1680.0,0.00012966,2]
[407832145,1772815350853,-250.0,0.00012969,2]
[407832146,1772815350885,-273.43627,0.00013014,2]
[407832147,1772815351105,-118.45314838,0.00013191,2]
[407832148,1772815351119,-245.718192,0.00013191,2]
[407832149,1772815352654,-10000.01,0.00012623,2]
[407832150,1772815352789,-10000.01,0.00012623,2]
[407832151,1772815355834,-10000.01,0.00012623,2]
[407832152,1772815356455,-10000.01,0.00012623,2]
[407832153,1772815356607,-10000.01,0.00012623,2]
[407832154,1772815357437,-3946.07099435,0.00012623,2]
[407832155,1772815357463,-2107.8680113,0.00012623,2]
[407832156,1772815357496,-1299.35865962,0.00013191,2]
[407832157,1772815357525,-515.0,0.0001342,2]
[407832158,1772815357553,-1663.53,0.00013603,2]
[407832159,1772815357581,-1488.08268076,0.00013699,2]
[407832160,1772815357743,-68.06731924,0.00013699,2]
[407832161,1772815358714,-1000.0,0.00013899,2]
[407832162,1772815358743,-150.0,0.00013999,2]
[407832163,1772815358774,-2700.01,0.00014,5]
[407832164,1772815358838,-2299.99,0.00014,5]
[407832165,1772815358868,-5000.0,0.00014,5]
[407832166,1772815358908,-0.01,0.00014016,2]
[407832167,1772815359104,-1663.52,0.00014016,2]
[407832168,1772815359144,-6672.97,0.00014079,2]
[407832169,1772815361905,-10000.01,0.00014079,2]
[407832170,1772815362031,-10000.01,0.00014079,2]
[407832171,1772815362177,-10000.01,0.00014079,2]
[407832172,1772815362313,-1675.22986119,0.00014079,2]
[407832173,1772815362344,-2351.0,0.00014262,2]
[407832202,1772815428553,-2973.0,0.00014247,2]
[407832203,1772815436012,515.0,0.0001342,2]
[407832213,1772815551139,-453.68843807,0.00014384,2]
[407832214,1772815561694,150.0,0.00014098,7]
[407832215,1772815562408,281.203207,0.00014098,7]
[407832216,1772815563205,412.406415,0.00014098,7]
[407832217,1772815563863,543.609623,0.00014098,7]
[407832218,1772815564628,674.812831,0.00014098,7]
[407832219,1772815565330,806.016038,0.00014098,7]
[407832220,1772815566106,937.219246,0.00014098,7]
[407832221,1772815566893,1068.422454,0.00014098,7]
[407832222,1772815567712,1199.625662,0.00014098,7]
[407832223,1772815568532,1330.828869,0.00014098,7]
[407832224,1772815612235,702.2294325,0.00013168,2]
[407832225,1772815635674,500.0,0.0001142,2]
[407832226,1772815636155,770.1855771,9.384e-05,2]
[407832227,1772815639895,500.0,0.0001142,2]
[407832228,1772815640266,123.4506454,9.384e-05,2]
[407832229,1772815640289,383.09549266,9.384e-05,2]
[407832230,1772815643627,500.0,0.0001142,2]
[407832231,1772815644093,-268.42863338,0.00014384,2]
[407832232,1772815644657,980.12020361,0.0001142,2]
[407832233,1772815646097,-348.36427138,0.00014384,2]
[407832234,1772815646569,500.0,0.0001142,2]
[407832240,1772815777734,150.0,0.0001412,7]
[407832241,1772815778526,248.295899,0.0001412,7]
[407832242,1772815779366,346.591799,0.0001412,7]
[407832243,1772815780182,444.887698,0.0001412,7]
[407832244,1772815781600,543.183598,0.0001412,7]
[407832245,1772815781990,641.479497,0.0001412,7]
[407832246,1772815782849,739.775397,0.0001412,7]
[407832247,1772815783652,838.071296,0.0001412,7]
[407832248,1772815784356,936.367196,0.0001412,7]
[407832249,1772815785049,1034.663096,0.0001412,7]
[407832250,1772815797761,515.0,0.0001342,2]
[407832253,1772815831368,-389.09741129,0.00014384,2]
[407832254,1772815831379,-96.57124588,0.00014384,2]
[407832255,1772815831390,-226.021968,0.00014384,2]
[407832256,1772815831420,-42.978032,0.00014384,2]
[407832257,1772815831431,-600.0,0.00014385,2]
[407832258,1772815831440,-323.31091499,0.00014386,2]
[407832259,1772815831450,-300.0,0.00014386,2]
[407832260,1772815831461,-300.0,0.0001441,2]
[407832261,1772815831470,-297.57310934,0.0001441,2]
[407832262,1772815831480,-600.0,0.00014423,2]
[407832263,1772815831490,-600.0,0.00014423,2]
[407832264,1772815831502,-489.4312264,0.00014423,2]
[407832265,1772815831513,-1663.53,0.00014428,2]
[407832266,1772815831524,-300.0,0.00014506,2]
[407832267,1772815831535,-1200.0,0.00014506,2]
[407832268,1772815831544,-3472.49565235,0.00014507,2]
[407832269,1772815831558,-533.89472,0.00014507,2]
[407832270,1772815831568,-3406.59746186,0.00014507,2]
[407832271,1772815831581,-1110.82473555,0.00014507,2]
[407832272,1772815831590,-151.0,0.00014634,2]
[407832273,1772815831600,-170.79056635,0.0001478,2]
[407832274,1772815831610,-1483.02344022,0.0001478,2]
[407832275,1772815831621,-9135.34381184,0.0001478,2]
[407832276,1772815831631,-702.2294325,0.00014813,2]
[407832278,1772815831640,-207.87,0.00014839,2]
[407832279,1772815831651,-1663.53,0.0001484,2]
[407832280,1772815831661,-2158.64,0.00014853,2]
[407832281,1772815831670,-6385.52,0.00014863,2]
[407832282,1772815831680,-4000.0,0.00014897,2]
[407832283,1772815831690,-3422.92,0.00014905,2]
[407832285,1772815831699,-4567.4119385,0.00014982,2]
[407832286,1772815831709,-250.0,0.00015,2]
[407832287,1772815831718,-1556.15,0.00015068,2]
[407832288,1772815831728,-1663.53,0.00015252,2]
[407832289,1772815831737,-4000.0,0.00015269,2]
[407832290,1772815831747,-500.0,0.00015372,2]
[407832291,1772815831756,-4000.0,0.00015642,2]
[407832292,1772815831766,-1663.53,0.00015665,2]
[407832293,1772815831775,-5929.9,0.00015714,2]
[407832294,1772815831784,-1556.15,0.00015753,2]
[407832295,1772815831794,-300.0,0.00015812,2]
[407832296,1772815831803,-259.47,0.00015812,2]
[407832297,1772815831812,-300.0,0.00015822,2]
[407832298,1772815831822,-150.0,0.00015822,2]
[407832299,1772815831831,-300.0,0.00015822,2]
[407832300,1772815831840,-200.0,0.00015822,2]
[407832301,1772815831850,-600.0,0.00015822,2]
[407832302,1772815831859,-7284.68,0.00015893,2]
[407832303,1772815831869,-1680.0,0.00015956,2]
[407832304,1772815831878,-10742.88,0.00015976,2]
[407832305,1772815831888,-8734.84,0.00015977,2]
[407832306,1772815831899,-500.0,0.00015989,2]
[407832307,1772815831908,-500.0,0.00015992,2]
[407832308,1772815831917,-500.0,0.00015992,2]
[407832309,1772815831927,-500.0,0.00015992,2]
[407832310,1772815831936,-258.69744367,0.00016013,2]
[407832311,1772815831945,-4000.0,0.00016014,2]
[407832312,1772815831957,-200.0,0.0001604,2]
[407832313,1772815831967,-500.0,0.0001604,2]
[407832314,1772815831976,-150.0,0.00016143,2]
[407832315,1772815831985,-200.0,0.00016194,2]
[407832316,1772815831995,-279.53,0.0001621,2]
[407832317,1772815832004,-166.66,0.0001627,2]
[407832318,1772815832013,-500.0,0.00016314,2]
[407832319,1772815832024,-500.0,0.00016384,2]
[407832320,1772815832035,-16341.65,0.00016384,2]
[407832321,1772815832046,-4000.0,0.00016387,2]
[407832322,1772815832055,-1556.15,0.00016438,2]
[407832323,1772815832064,-1000.0,0.00016438,2]
[407832324,1772815832074,-702.2294325,0.00016458,2]
[407832325,1772815832084,-279.53,0.0001648,2]
[407832326,1772815832093,-1000.0,0.00016537,2]
[407832327,1772815832104,-1000.0,0.0001654,2]
[407832328,1772815832114,-1000.0,0.0001654,2]
[407832329,1772815832123,-3240.0,0.00016601,2]
[407832330,1772815832132,-954.24209332,0.0001661,2]
[407832331,1772815832147,-1545.75790668,0.0001661,2]
[407832332,1772815832156,-1823.04754066,0.00016612,2]
[407832333,1772815832167,-252.17238759,0.00016612,2]
[407832334,1772815832183,-8898.32662721,0.00016612,2]
[407832335,1772815832192,-9056.39354865,0.0001671,2]
[407832336,1772815832204,-260.03248731,0.0001671,2]
[407832363,1772815837510,-2416.4457113,0.0001671,2]
[407832364,1772815837522,-334.17551113,0.0001671,2]
[407832365,1772815837634,-38.70714122,0.0001671,2]
[407832371,1772815839602,-5291.68564326,0.0001671,2]
[407832372,1772815839613,-557.94431981,0.0001671,2]
[407832373,1772815839779,-29.82540388,0.0001671,2]
[407832374,1772815839790,-80338.43793344,0.0001671,2]
[407832375,1772815839799,-1000.0,0.00016712,2]
[407832376,1772815839808,-279.53,0.0001675,2]
[407832377,1772815839818,-166.66,0.00016807,2]
[407832378,1772815839827,-13479.56,0.0001681,2]
[407832379,1772815839836,-510.0,0.00016935,2]
[407832380,1772815839844,-6645.66058085,0.00016944,7]
[407832381,1772815839867,-758.48376915,0.00016944,7]
[407832382,1772815839876,-1000.0,0.00016986,2]
[407832383,1772815839885,-300.0,0.00017,2]
[407832384,1772815839894,-279.53,0.0001702,2]
[407832385,1772815839903,-1500.0,0.00017085,2]
[407832386,1772815839912,-1500.0,0.00017088,2]
[407832387,1772815839922,-1500.0,0.00017088,2]
[407832388,1772815839931,-1000.0,0.0001726,2]
[407832389,1772815839940,-279.53,0.0001729,2]
[407832390,1772815839949,-166.66,0.00017345,2]
[407832391,1772815839963,-155.5,0.00017483,2]
[407832392,1772815839972,-1830.9,0.00017493,2]
[407832393,1772815839982,-2041.83,0.0001751,7]
[407832394,1772815839991,-1999.0,0.00017534,2]
[407832395,1772815840002,-2351.0,0.00017552,2]
[407832396,1772815840011,-279.53,0.0001756,2]
[407832397,1772815840020,-2000.0,0.00017633,2]
[407832398,1772815840029,-2000.0,0.00017636,2]
[407832399,1772815840041,-279.53,0.0001783,2]
[407832400,1772815840050,-166.66,0.00017882,2]
[407832401,1772815840059,-1531.37,0.00018035,7]
[407832402,1772815840068,-757.2,0.00018057,2]
[407832403,1772815840077,-279.53,0.000181,2]
[407832404,1772815840086,-702.2294325,0.00018104,2]
[407832405,1772815840096,-515.0,0.00018176,6]
[407832406,1772815840105,-1503.37044262,0.00018181,2]
[407832407,1772815840114,-2500.0,0.00018183,2]
[407832408,1772815840123,-279.53,0.0001837,2]
[407832409,1772815840132,-166.66,0.00018419,2]
[407832410,1772815840141,-155.5,0.00018454,2]
[407832411,1772815840150,-500.0,0.00018532,2]
[407832412,1772815840159,-500.0,0.00018532,2]
[407832413,1772815840168,-500.0,0.00018532,2]
[407832414,1772815840178,-500.0,0.00018532,2]
[407832415,1772815840187,-29999.99,0.00018533,2]
[407832416,1772815840196,-9999.99,0.00018533,2]
[407832417,1772815840206,-1020.91,0.00018561,7]
[407832418,1772815840215,-501.33101077,0.00018573,2]
[407832419,1772815840224,-500.0,0.00018573,2]
[407832420,1772815840233,-530.88059829,0.00018573,2]
[407832421,1772815840243,-556.1229892,0.00018573,2]
[407832422,1772815840252,-500.0,0.00018573,2]
[407832423,1772815840261,-500.0,0.00018573,2]
[407832424,1772815840270,-449.5306254,0.00018573,2]
[407832425,1772815840280,-279.53,0.0001864,2]
[407832426,1772815840289,-3000.0,0.00018731,2]
[407832427,1772815840299,-279.53,0.0001891,2]
[407832428,1772815840308,-166.66,0.00018956,2]
[407832429,1772815840318,-350.0,0.00019,2]
[407832430,1772815840326,-5000.0,0.00019,10]
[407832431,1772815840336,-5000.0,0.00019,15]
[407832433,1772815840345,-853.66,0.00019178,30]
[407832434,1772815840355,-279.53,0.0001918,2]
[407832435,1772815840364,-444.3243859,0.00019227,2]
[407832436,1772815840373,-1000.0,0.00019239,2]
[407832437,1772815840382,-1500.0,0.00019279,2]
[407832438,1772815840391,-3292.0,0.00019307,2]
[407832439,1772815840400,-3816.51,0.00019362,2]
[407832440,1772815840409,-155.5,0.00019425,2]
[407832441,1772815840418,-279.53,0.0001945,2]
[407832443,1772815840428,-3816.52,0.00019704,2]
[407832444,1772815840437,-279.53,0.0001972,2]
[407832445,1772815840446,-1000.0,0.00019871,2]
[407832446,1772815840455,-1635.64,0.00019949,2]
[407832447,1772815840464,-279.53,0.0001999,2]
[407832448,1772815840473,-10973.54655545,0.00019999,2]
[407832449,1772815840482,-550.62,0.0002,7]
[407832450,1772815840491,-151.00978754,0.0002,20]
[407832451,1772815840500,-150.99,0.00020145,2]
[407832452,1772815840509,-9999.99,0.00020145,2]
[407832453,1772815840518,-299.99,0.00020145,7]
[407832454,1772815840527,-9999.99,0.00020145,2]
[407832455,1772815840535,-150.99,0.00020145,2]
[407832456,1772815840544,-978.79,0.00020145,2]
[407832457,1772815840554,-350.24,0.00020145,2]
[407832458,1772815840563,-415.66,0.00020145,2]
[407832459,1772815840572,-1768.54,0.00020145,2]
[407832460,1772815840581,-260.71,0.00020145,2]
[407832461,1772815840590,-9999.99,0.00020145,2]
[407832462,1772815840603,-279.53,0.0002026,2]
[407832463,1772815840612,-1635.65,0.0002034,2]
[407832464,1772815840738,-155.5,0.00020396,2]
[407832465,1772815840755,-172.74325605,0.00020462,2]
[407832466,1772815840764,-279.53,0.0002053,2]
[407832467,1772815840774,-279.53,0.000208,2]
[407832468,1772815840783,-500.0,0.00020904,2]
[407832469,1772815840793,-270.08634337,0.00021061,2]
[407832470,1772815840803,-279.53,0.0002107,2]
[407832471,1772815840813,-825.0,0.00021122,30]
[407832472,1772815840822,-8884.97322,0.0002118,7]
[407832473,1772815840831,-4609.0,0.00021238,2]
[407832474,1772815840841,-279.53,0.0002134,2]
[407832475,1772815840850,-155.5,0.00021368,2]
[407832476,1772815840860,-279.53,0.0002161,2]
[407832477,1772815840872,-2908.84,0.0002161,2]
[407832478,1772815840881,-2908.84,0.0002161,2]
[407832479,1772815840890,-3350.47,0.0002161,2]
[407832480,1772815840899,-1058.15,0.00021776,2]
[407832481,1772815840910,-500.0,0.0002183,2]
[407832482,1772815840919,-279.53,0.0002188,2]
[407832483,1772815840929,-635.0,0.00021918,30]
[407832484,1772815840938,-180.6,0.00021918,2]
[407832485,1772815840947,-1295.25,0.00022,30]
[407832486,1772815840965,-853.66,0.00022114,30]
[407832487,1772815840976,-279.53,0.0002215,2]
[407832488,1772815840987,-7284.68,0.0002225,2]
[407832489,1772815840997,-155.5,0.00022339,2]
[407832490,1772815841006,-500.0,0.00022378,2]
[407832491,1772815841016,-279.64,0.0002242,2]
[407832492,1772815841027,-515.0,0.00022931,10]
[407832493,1772815841039,-160.0,0.00023,2]
[407832494,1772815841049,-1541.88,0.00023207,2]
[407832495,1772815841060,-155.5,0.0002331,2]
[407832496,1772815841069,-6453.0,0.00023362,2]
[407832497,1772815841079,-151.0,0.00023381,2]
[407832498,1772815841089,-9000.0,0.00023381,2]
[407832499,1772815841099,-10973.54655545,0.00023386,2]
[407832500,1772815841110,-9000.0,0.00023436,2]
[407832501,1772815841120,-825.0,0.00023492,30]
[407832502,1772815841130,-151.0,0.00023929,2]
[407832503,1772815841140,-155.5,0.00024281,2]
[407832504,1772815841150,-201.19,0.00024658,2]
[407832505,1772815841160,-1000.0,0.00024658,2]
[407832506,1772815841170,-150.0,0.00024658,2]
[407832507,1772815841179,-180.6,0.00024918,2]
[407832508,1772815841189,-535.0,0.00025,2]
[407832509,1772815841199,-853.66,0.00025049,30]
[407832510,1772815841209,-155.5,0.00025253,2]
[407832511,1772815841219,-9035.0,0.00025698,2]
[407832512,1772815841230,-825.0,0.00025862,60]
[407832513,1772815841239,-150.0,0.0002589,2]
[407832514,1772815841250,-1295.25,0.00026199,30]
[407832515,1772815841261,-155.5,0.00026224,2]
[407832516,1772815841271,-669.0,0.00026427,10]
[407832517,1772815841281,-461.0,0.00026427,10]
[407832518,1772815841291,-150.0,0.000265,30]
[407832519,1772815841301,-171.86,0.00026663,2]
[407832520,1772815841311,-10973.54655545,0.00026773,2]
[407832521,1772815841324,-2000.0,0.000269,2]
[407832522,1772815841334,-1651.88,0.000271,14]
[407832523,1772815841344,-150.0,0.00027185,2]
[407832524,1772815841353,-1000.0,0.00027397,20]
[407832525,1772815841364,-201.19,0.00027397,2]
[407832526,1772815841374,-300.0,0.00027397,2]
[407832527,1772815841383,-22564.59,0.00027397,10]
[407832528,1772815841393,-18803.83,0.00027397,10]
[407832529,1772815841403,-15669.86,0.00027397,10]
[407832530,1772815841413,-150.0,0.00027397,5]
[407832531,1772815841423,-160.40996513,0.00027397,5]
[407832532,1772815841433,-150.0,0.00027679,120]
[407832533,1772815841443,-214.9161446,0.00027679,120]
[407832534,1772815841453,-515.0,0.00027687,14]
[407832535,1772815841463,-250.0,0.00027945,5]
[407832536,1772815841472,-853.66,0.00027984,30]
[407832537,1772815841483,-358.98116355,0.0002807,2]
[407832538,1772815841493,-825.0,0.00028233,60]
[407832539,1772815841502,-7404.14435,0.00028241,30]
[407832540,1772815841516,-3749.0,0.00028268,2]
[407832541,1772815841525,-480.49204324,0.00028493,5]
[407832542,1772815841535,-150.0,0.00028544,2]
[407832543,1772815841546,-1104.12012902,0.00028612,2]
[407832544,1772815841557,-150.0,0.00029,30]
[407832545,1772815841567,-500.0,0.00029145,5]
[407832546,1772815841577,-500.0,0.00029145,5]
[407832547,1772815841587,-500.0,0.00029145,5]
[407832548,1772815841597,-500.0,0.00029173,5]
[407832549,1772815841607,-500.0,0.00029173,5]
[407832550,1772815841617,-500.0,0.00029173,5]
[407832551,1772815841627,-1341.0,0.0002919,2]
[407832552,1772815841636,-1042.0,0.0002919,2]
[407832553,1772815841646,-3502.0,0.0002919,2]
[407832554,1772815841656,-751.844,0.0002919,2]
[407832555,1772815841666,-150.0,0.0002919,2]
[407832556,1772815841675,-1279.0,0.0002919,2]
[407832557,1772815841685,-534.473,0.0002919,2]
[407832558,1772815841695,-3746.0,0.0002919,2]
[407832559,1772815841708,-5990.0,0.0002919,2]
[407832560,1772815841718,-1000.0,0.00029693,5]
[407832561,1772815841729,-1000.0,0.00029693,5]
[407832562,1772815841739,-1000.0,0.00029693,5]
[407832563,1772815841748,-1000.0,0.00029721,5]